Workbook

Sheet 2018 (2)
B2: РОДИТЕЛЬСКАЯ ПЛАТА
E3: с 1.01.2017 года | O3: с 1.01.2018 года
B4: Наименование | C4: Категория | D4: часы | E4: ВСЕГО | G4: в т.ч. | L4: Наименование | M4: Категория | N4: часы | O4: ВСЕГО | Q4: в т.ч. | V4: % повышения
G5: Содержание | I5: Питание | Q5: Содержание | S5: Питание
D6: посещен. | E6: 1-3 | F6: 3-7 | G6: 1-3 | H6: 3-7 | I6: 1-3 | J6: 3-7 | N6: посещен. | O6: 1-3 | P6: 3-7 | Q6: 1-3 | R6: 3-7 | S6: 1-3 | T6: 3-7 | V6: 1-3 | W6: 3-7
B7: 1,3,5,6 | C7: дет.сад | D7: 12 | E7: 2997 | F7: 2912 | G7: =E7-I7 -> 2480 | H7: =F7-J7 -> 2333 | I7: 517 | J7: 579 | L7: 1,3,5,6 | M7: дет.сад | N7: 12 | O7: 3117 | P7: 3028 | Q7: =O7-S7 -> 2580 | R7: =P7-T7 -> 2420 | S7: 537 | T7: 608 | V7: =O7/E7 -> 1.04 | W7: =P7/F7 -> 1.04
B9: 12,14,16,17,18,20,22 | C9: д/сад | D9: 12 | E9: 3431 | F9: 3287 | G9: =E9-I9 -> 2914 | H9: =F9-J9 -> 2708 | I9: 517 | J9: 579 | L9: 12,14,16,17,18,20,22 | M9: д/сад | N9: 12 | O9: 3568 | P9: 3418 | Q9: =O9-S9 -> 3031 | R9: =P9-T9 -> 2810 | S9: 537 | T9: 608 | V9: =O9/E9 -> 1.04 | W9: 1.04
B10: 24,25,26,27,28,29,30 | C10: общеразвив. | L10: 24,25,26,27,28,29,30 | M10: общеразвив.
B11: 31,32,33,34,35,36,32.39 | C11: вида | L11: 31,32,33,34,35,36.32 | M11: вида
C12: группы с об- | M12: группы с об-
B13: 16,18,24,30,34,35,36 | C13: щим недораз- | D13: 12 | F13: 4671 | H13: =F13-J13 -> 4092 | J13: 579 | L13: 16,18,24,30,34,35,36 | M13: щим недораз- | N13: 12 | P13: 4858 | R13: =P13-T13 -> 4250 | T13: 608 | W13: 1.04
C14: витием речи | M14: витием речи
C16: компенс.гр-слабовидящие | M16: компенс.гр-слабовидящие
B17: 26 | D17: 12 | E17: 5167 | F17: 4671 | G17: =E17-I17 -> 4650 | H17: =F17-J17 -> 4092 | I17: 517 | J17: 579 | L17: 26 | N17: 12 | O17: 5374 | P17: 4858 | Q17: =O17-S17 -> 4837 | R17: =P17-T17 -> 4250 | S17: 537 | T17: 608 | V17: 1.04 | W17: 1.04
B20: 28 | C20: компенс.гр | D20: 12 | E20: 5167 | F20: 4671 | G20: =E20-I20 -> 4650 | H20: =F20-J20 -> 4092 | I20: 517 | J20: 579 | L20: 28 | M20: компенс.гр | N20: 12 | O20: 5374 | P20: 4858 | Q20: =O20-S20 -> 4837 | R20: =P20-T20 -> 4250 | S20: 537 | T20: 608 | V20: 1.04 | W20: 1.04
C21: аллергич. гр | M21: аллергич. гр
B22: 38 | C22: центр развития ребенка | D22: 12 | E22: 3933 | F22: 3729 | G22: =E22-I22 -> 3416 | H22: =F22-J22 -> 3150 | I22: 517 | J22: 579 | L22: 38 | M22: центр развития ребенка | N22: 12 | O22: 4090 | P22: 3878 | Q22: =O22-S22 -> 3553 | R22: =P22-T22 -> 3270 | S22: 537 | T22: 608 | V22: 1.04 | W22: 1.04
B23: 13 | C23: компенс.гр ( иные отклонения в развитиии) | D23: 12 | E23: 5167 | F23: 4671 | G23: =E23-I23 -> 4650 | H23: =F23-J23 -> 4092 | I23: 517 | J23: 579 | L23: 13 | M23: компенс.гр ( иные отклонения в развитиии) | N23: 12 | O23: 5374 | P23: 4858 | Q23: =O23-S23 -> 4837 | R23: =P23-T23 -> 4250 | S23: 537 | T23: 608 | V23: 1.04 | W23: 1.04
B25: Село | C25: д\сад | D25: 9 | E25: 2550 | F25: 2626 | G25: =E25-I25 -> 2137 | H25: 2105 | I25: 413 | J25: 521 | L25: Село | M25: д\сад | N25: 9 | O25: 2652 | P25: 2731 | Q25: =O25-S25 -> 2222 | R25: 2190 | S25: 430 | T25: 541 | V25: 1.04 | W25: 1.04
D26: 12 | E26: 2997 | F26: 2912 | G26: 2480 | H26: 2333 | I26: 517 | J26: 579 | N26: 12 | O26: 3117 | P26: 3028 | Q26: =O26-S26 -> 2580 | R26: =P26-T26 -> 2420 | S26: 537 | T26: 608 | V26: 1.04 | W26: 1.04
B28: 9 часовые - Д-дюм,Костенеево,Морты,Юраши,Альметьево,Армалы,Куклюк, Елово,Б-Шурняк,Яковлево
B29: 12 часовые -Танайка,Бехтерево,поспелово,Хлыстово,37,Гари
